Cogmind - Beta 17 @@@ ROGUE MODE // 2026.07.26 @ 12:22:41 Player: OBLIQUE Result: Destroyed by S-43 Plague with Heavy Machine Gun Performance ------------- Evolutions (6) 3000 Regions Visited (21) 4200 Robots Destroyed (178) 890 Value Destroyed (5430) 5430 Prototype IDs (39) 780 Alien Tech Used (2) 400 Bonus (3517) 3517 TOTAL SCORE: 18217 Bonus ------- High Alert Combat Kills 320 Follower Combat Kills 1314 Registered with UFD 300 Met Optimus in HQ 500 Met Imprinter 300 Met Warlord at Base 500 MAIN.C Attacked Warlord 500 Friendly Fire -217 Cogmind --------- Core Integrity 0/1150 Matter 169/300 Energy 99/100 System Corruption 7% Temperature Cool (0) Movement Core (50) Location -3/Proximity Caves Parts ------- > --- POWER (3) -------- (None) > --- PROPULSION (3) --- (None) > --- UTILITY (11) ----- Experimental Utility Shielding > --- WEAPON (2) ------- (None) > --- INVENTORY (5) ---- Light Antimatter Reactor Long-range Proton Cannon Sapper Charge Peak State ------------ > --- POWER ------------ Angular Momentum Engine Reinforced Fission Core Micro Fission Core > --- PROPULSION ------- Medium Treads Improved Antigrav System > --- UTILITY ---------- Power Amplifier Advanced Heat Sink Large Storage Unit Makeshift Trap Scanner Energy Filter Improved Heavy Armor Plating Makeshift Ablative Armor Advanced Shield Generator > --- WEAPON ----------- Vortex Cannon Vortex Cannon > --- INVENTORY -------- Makeshift Power Source Makeshift Power Source Micro Fission Core 0b10 Decoder Chip [Generic] 0b10 Decoder Chip [Generic] Hacking Drone Bay Minesniffer Drone Bay Long-range Proton Cannon Long-range Proton Cannon Long-range Proton Cannon Thermoblaster Sapper Charge Sapper Charge Sapper Charge Sapper Charge [Rating: 96] Favorites ----------- Power Deuterium Engine Engine Deuterium Engine Power Core Reinforced Fission Core Reactor Light Antimatter Reactor Propulsion Wheel Treads Medium Treads Leg Myomer Leg Wheel Wheel Hover Unit Improved Antigrav System Utility Advanced Heat Sink Device Advanced Heat Sink Storage Large Storage Unit Processor A0-MCA's Component Scanner Hackware Advanced System Shield Protection Hardened Medium Armor Plating Weapon Heavy EM Shotgun Energy Gun Heavy EM Shotgun Energy Cannon Long-range Proton Cannon Ballistic Gun Improved Assault Rifle Ballistic Cannon Assault Cannon Launcher Shock Bomb Launcher Special Weapon Improved Remote Datajack Piercing Weapon Spear Build | -11 -10 -9 -9 -8 -8 -8 -8 -6 -6 -6 -5 -5 -5 -5 -5 -4 -4 -4 -4 -4 -3 ------- Run | Yrd Mat Mat Min Mat Sto Rec Scr Fac Low Zio Pro Fac Upp Upp War Pro Fac Upp Upp Zhi Pro Slots Evolved 12 | . . 2 . 2 . . . 4 . . . 2 . . . . 2 . . . . Power 2 | . . . . 1 . . . 1 . . . . . . . . . . . . . Propulsion 1 | . . . . . . . . . . . . . . . . . 1 . . . . Utility 9 | . . 2 . 1 . . . 3 . . . 2 . . . . 1 . . . . Weapon . | . . . . . . . . . . . . . . . . . . . . . . Parts Attached 165 | 6 3 17 1 25 13 6 6 3 . 4 . 17 20 3 14 10 9 3 . 5 . Power 23 | 1 . 1 1 7 2 1 . . . . . 1 3 . 2 1 1 1 . 1 . Engine 17 | 1 . 1 1 7 2 1 . . . . . 1 1 . 1 . 1 . . . . Core 4 | . . . . . . . . . . . . . 2 . 1 1 . . . . . Reactor 2 | . . . . . . . . . . . . . . . . . . 1 . 1 . Propulsion 24 | 2 . 4 . 1 1 2 . . . . . 3 4 . . 2 5 . . . . Treads 2 | . . . . . . . . . . . . . 2 . . . . . . . . Leg 4 | . . . . . . . . . . . . . . . . 1 3 . . . . Wheel 16 | 2 . 4 . 1 1 2 . . . . . 3 1 . . . 2 . . . . Hover 2 | . . . . . . . . . . . . . 1 . . 1 . . . . . Flight . | . . . . . . . . . . . . . . . . . . . . . . Utility 69 | 1 3 4 . 9 2 3 4 3 . 3 . 10 10 2 6 3 1 1 . 4 . Device 36 | . . 1 . 5 1 . 3 2 . 2 . 9 5 1 4 . 1 . . 2 . Storage 10 | 1 2 . . 1 1 1 . . . 1 . . 2 . . . . . . 1 . Processor 5 | . 1 . . . . . . 1 . . . . 1 . . 2 . . . . . Hackware 2 | . . . . . . . . . . . . 1 . . . 1 . . . . . Protection 16 | . . 3 . 3 . 2 1 . . . . . 2 1 2 . . 1 . 1 . Artifact . | . . . . . . . . . . . . . . . . . . . . . . Weapon 49 | 2 . 8 . 8 8 . 2 . . 1 . 3 3 1 6 4 2 1 . . . Energy Gun 20 | . . 3 . 5 5 . 2 . . 1 . 3 . . 1 . . . . . . Energy Cannon 8 | . . . . . 1 . . . . . . . . . 3 4 . . . . . Ballistic Gun 9 | 2 . 3 . 1 . . . . . . . . 1 1 . . 1 . . . . Ballistic Cannon 2 | . . 2 . . . . . . . . . . . . . . . . . . . Launcher 8 | . . . . 2 2 . . . . . . . . . 2 . 1 1 . . . Special Weapon 1 | . . . . . . . . . . . . . 1 . . . . . . . . Impact Weapon . | . . . . . . . . . . . . . . . . . . . . . . Slashing Weapon . | . . . . . . . . . . . . . . . . . . . . . . Piercing Weapon 1 | . . . . . . . . . . . . . 1 . . . . . . . . Special Melee Weapon . | . . . . . . . . . . . . . . . . . . . . . . Unidentified Prototypes 13 | . . 2 . 2 1 . . . . . . . . . 3 . . . . 4 1 Corrupted Parts 1 | . . . . . . . . . . . . 1 . . . . . . . . . System Corruption 1 | . . . . . . . . . . . . 1 . . . . . . . . . Parts Lost 48 | . . 6 1 3 1 . . . . . . 11 3 1 . 4 13 1 3 . 1 Power 7 | . . . 1 2 . . . . . . . 1 1 . . . 2 . . . . Propulsion 17 | . . 3 . 1 . . . . . . . 4 1 . . 2 3 1 1 . 1 Utility 20 | . . 2 . . . . . . . . . 6 1 1 . 2 6 . 2 . . Weapon 4 | . . 1 . . 1 . . . . . . . . . . . 2 . . . . Highest Loss Streak 12 | . . 4 1 2 1 . . . . . . 7 2 1 . 2 12 1 3 . 1 To Critical Strikes . | . . . . . . . . . . . . . . . . . . . . . . Average Backups 16 | . 2 14 19 19 19 19 22 24 25 24 26 13 7 11 13 10 10 2 3 3 2 Power 1 | . 1 2 2 1 2 2 1 1 1 1 1 . . . 1 2 2 . 1 . . Propulsion . | . . . 1 . . . . . . . . . . 1 . . . . . . . Utility 5 | . . 1 2 3 3 4 8 8 8 11 13 6 3 4 5 3 2 . 1 1 . Weapon 8 | . 1 10 14 13 12 12 11 15 16 11 12 6 3 4 5 3 4 . 1 1 . Tool/Special . | . . . . . . . . . . . . . . . . . . . . . . Unused Backups 42 | . . 5 1 13 6 . . . . 1 . 6 . . 5 . 4 1 . . . Power 5 | . . . 1 2 . . . . . . . . . . . . 2 . . . . Propulsion 1 | . . . . . 1 . . . . . . . . . . . . . . . . Utility 9 | . . . . 2 . . . . . . . 3 . . 2 . 1 1 . . . Weapon 27 | . . 5 . 9 5 . . . . 1 . 3 . . 3 . 1 . . . . Tool/Special . | . . . . . . . . . . . . . . . . . . . . . . Average Slot Usage (%) 85 | . 94 87 100 95 99 100 95 99 100 93 93 76 30 81 87 80 81 35 25 33 28 Engine 12 | . 14 11 11 17 18 18 16 20 20 20 20 11 1 5 8 5 4 . . . . Core 1 | . . . . . . . . . . . . . 2 5 5 10 8 . . . . Treads 1 | . . . . . . . . . . . . . 2 11 10 1 . . . . . Wheel 10 | . 28 19 22 17 18 18 17 13 13 13 13 8 . . . . 6 . . . . Device 23 | . . 3 11 22 27 27 25 32 33 30 33 33 3 23 25 28 21 . . 4 3 Storage 6 | . 17 11 11 9 9 9 8 6 6 6 6 2 4 9 5 5 4 . . 1 3 Processor 2 | . 4 11 11 . . . . 5 6 6 6 4 1 . . . 10 10 7 5 3 Protection 7 | . . 13 11 8 8 9 8 6 6 2 . 2 1 13 16 7 4 . 5 9 8 Energy Gun 8 | . . 7 11 11 17 18 17 13 13 13 5 7 1 4 . . . . . . . Energy Cannon 1 | . . . . . . . . . . . . . . . 3 10 6 1 . . . Ballistic Gun 1 | . 28 5 11 5 . . . . . . . . . 1 2 . . . . . . Peak Build Rating 96 | 6 7 22 18 33 37 37 40 63 63 63 62 73 61 69 95 96 93 57 36 55 67 Average Rating 50 | 4 6 16 17 28 33 35 35 62 63 60 60 58 27 65 79 85 83 44 28 44 36 On Entrance 40 | . 6 7 18 17 33 37 35 40 63 63 62 60 2 61 64 75 89 40 36 18 55 Avg Prop Armor Cover (%) 20 | . . . . . . . . . . . . . 22 . . 1 6 39 35 29 . Naked Turns 179 | . . . . . . . 50 . . . . 31 96 . . . . . . . 2 Heaviest Build 260 | 13 48 70 57 81 84 115 120 131 131 248 251 260 90 103 136 125 98 29 2 53 41 Greatest Support 75 | 20 20 28 28 28 32 32 26 26 26 26 26 26 51 51 51 28 25 75 3 25 25 Greatest Overweight (x) 16 | . 2 6 2 3 3 4 4 5 5 9 9 16 4 2 3 7 9 . . 2 1 Average Overweight (x) 3 | . . 2 1 2 2 2 3 5 5 7 9 4 . 1 1 3 3 . . . . Largest Inventory Capacity 35 | 8 20 20 20 20 20 25 25 25 25 35 35 35 15 15 15 15 15 5 5 5 5 Average Capacity 19 | 7 14 20 20 20 20 20 24 25 25 31 35 17 11 15 15 15 14 5 5 5 5 Most Carried 27 | 2 4 20 20 20 20 21 25 25 25 26 27 27 12 13 15 15 15 5 5 5 5 Average Carried 17 | . 2 14 19 19 19 19 22 24 25 24 26 13 7 11 14 14 14 4 4 4 4 Final Capacity 35 | 8 20 20 20 20 20 25 25 25 25 35 35 5 15 15 15 15 5 5 5 5 5 Final Carried 27 | 2 4 20 20 20 20 21 25 25 25 26 27 5 12 13 15 14 5 5 5 5 3 Class Distribution -------------------- 41% | Commander-Mutant 21% | Mutant 16% | Scavenger-Mutant 15% | Derelict-Mutant 4% | Scientist-Mutant Dominant Class ---------------- Mutant | -10/Materials Mutant | -9/Materials Scientist-Mutant | -9/Mines Mutant | -8/Materials Mutant | -8/Storage Commander-Mutant | -8/Recycling Commander-Mutant | -8/Scraptown Commander-Mutant | -6/Factory Commander-Mutant | -6/Lower Caves Commander-Mutant | -6/Zion Commander-Mutant | -5/Proximity Caves Scavenger-Mutant | -5/Factory Scavenger-Mutant | -5/Upper Caves Scavenger-Mutant | -5/Upper Caves Scavenger-Mutant | -5/Warlord Derelict-Mutant | -4/Proximity Caves Derelict-Mutant | -4/Factory Mutant | -4/Upper Caves Mutant | -4/Upper Caves Mutant | -4/Zhirov Mutant | -3/Proximity Caves Resources | -11 -10 -9 -9 -8 -8 -8 -8 -6 -6 -6 -5 -5 -5 -5 -5 -4 -4 -4 -4 -4 -3 ----------- Run | Yrd Mat Mat Min Mat Sto Rec Scr Fac Low Zio Pro Fac Upp Upp War Pro Fac Upp Upp Zhi Pro Matter Collected 3539 | 246 80 727 51 470 240 67 140 11 29 30 85 322 450 149 147 114 97 84 . . . Remotely . | . . . . . . . . . . . . . . . . . . . . . . Salvage Created 9012 | . 80 936 116 1861 1384 564 . 53 . . 534 2140 59 204 . 164 902 15 . . . Parts 364 | . 6 43 5 94 66 19 . 2 . . 15 62 4 12 . 6 30 . . . . Haulers Intercepted 7 | . . 3 . 3 1 . . . . . . . . . . . . . . . . Recyclers Shooed 13 | . . . . . 1 5 . . . . . 7 . . . . . . . . . Parts Field Recycled . | . . . . . . . . . . . . . . . . . . . . . . Retrieved Matter . | . . . . . . . . . . . . . . . . . . . . . . Parts Self-Destructed 29 | . . . . . . . . . . . 15 . . 5 . 3 . 6 . . . Prevented 26 | . . . . . . . . . . . 17 . . 6 . 3 . . . . . Parts Restored . | . . . . . . . . . . . . . . . . . . . . . . Kills | -11 -10 -9 -9 -8 -8 -8 -8 -6 -6 -6 -5 -5 -5 -5 -5 -4 -4 -4 -4 -4 -3 ------- Run | Yrd Mat Mat Min Mat Sto Rec Scr Fac Low Zio Pro Fac Upp Upp War Pro Fac Upp Upp Zhi Pro Combat Hostiles Destroyed 108 | . 1 14 3 26 19 4 . 1 . . 8 11 1 3 . 10 6 1 . . . Melee 1 | . . . . . . . . . . . . . 1 . . . . . . . . Guns 52 | . 1 9 1 18 12 4 . 1 . . 2 1 . 2 . . 1 . . . . Cannons 13 | . . 2 . . . . . . . . . . . . . 10 . 1 . . . AOE 31 | . . 3 2 5 5 . . . . . 4 8 . 1 . . 3 . . . . Classes Destroyed 18 | . 2 6 . 3 1 1 . . . . 3 2 . . . . . . . . . Worker 18 | . . 2 . 4 2 . . . . . . 7 . . . . 3 . . . . Builder 8 | . . . . 2 . . . . . . . 3 . . . . 3 . . . . Tunneler 1 | . . . . . . . . . . . . 1 . . . . . . . . . Hauler 7 | . . 3 . 3 1 . . . . . . . . . . . . . . . . Recycler 21 | . . 3 . 1 1 5 . . . . . 9 . . . . 2 . . . . Mechanic 2 | . . . . 1 1 . . . . . . . . . . . . . . . . Operator 4 | . . 1 . 1 2 . . . . . . . . . . . . . . . . Drone 3 | . . . . . . . . . . . 1 . . . . 2 . . . . . Watcher 7 | . 2 . . 3 1 . . . . . . 1 . . . . . . . . . Swarmer 12 | . . 3 . 2 . 1 . . . . . 1 . . . 4 . 1 . . . Grunt 63 | . 1 9 3 18 11 . . 1 . . 6 9 . . . . 5 . . . . Brawler 1 | . . . . . 1 . . . . . . . . . . . . . . . . Duelist 4 | . . . . 1 . . . . . . . 1 . 1 . . 1 . . . . Protector 1 | . . . . . . . . . . . . 1 . . . . . . . . . Sentry 17 | . . 2 . 5 7 2 . . . . . . . 1 . . . . . . . Hunter 3 | . . . . . . . . . . . 1 . . . . 2 . . . . . Programmer 5 | . . . . . . 1 . . . . . . 1 1 . 2 . . . . . Fireman 1 | . . . . . . . . . . . 1 . . . . . . . . . . Best Kill Streak 13 | . 1 6 3 7 5 3 . 1 . . 3 13 1 1 . 4 8 1 . . . Combat Bots Only 7 | . 1 5 3 5 4 3 . 1 . . 3 7 1 1 . 4 6 1 . . . Max Kills in Single Turn 6 | . 1 2 2 4 3 2 . 1 . . 2 6 1 1 . 1 1 1 . . . Gunslinging . | . . . . . . . . . . . . . . . . . . . . . . Exploded 3 | . . 1 2 2 1 . . . . . 1 3 . 1 . . 1 . . . . Melee 1 | . . . . . . . . . . . . . 1 . . . . . . . . Uniques/NPCs Destroyed . | . . . . . . . . . . . . . . . . . . . . . . Combat | -11 -10 -9 -9 -8 -8 -8 -8 -6 -6 -6 -5 -5 -5 -5 -5 -4 -4 -4 -4 -4 -3 -------- Run | Yrd Mat Mat Min Mat Sto Rec Scr Fac Low Zio Pro Fac Upp Upp War Pro Fac Upp Upp Zhi Pro Hostile Shots Fired 862 | . 14 84 22 135 49 21 . . . . 23 114 35 22 19 87 97 31 26 . 83 Missed 280 | . 4 22 10 43 14 5 . . . . 16 40 10 10 5 28 25 8 11 . 29 Hits 582 | . 10 62 12 92 35 16 . . . . 7 74 25 12 14 59 72 23 15 . 54 Melee 11 | . . . . 3 . . . . . . . 5 . . 3 . . . . . . Projectile 571 | . 10 62 12 89 35 16 . . . . 7 69 25 12 11 59 72 23 15 . 54 AOE 3 | . . . . . . . . . . . . 1 . . 2 . . . . . . Critical Strikes 33 | . . . . 6 3 3 . . . . 1 5 3 . 2 3 2 2 1 . 2 Damage Taken 9553 | . 141 1032 145 1263 505 211 . 15 . . 121 1434 587 279 315 730 1377 389 310 . 699 Core 2255 | . 27 91 29 142 53 2 . . . . 15 366 323 . 25 26 298 153 69 . 636 Absorbed by Shields 1342 | . . . . 368 164 31 . 5 . . 37 189 . . 114 277 80 . . . 77 Redirected to Shielding 45 | . . . . . . . . . . . . . . . . . . . 21 . 24 Regen/Repaired (Parts) 399 | . . . . 114 147 . . . . . . . . . 138 . . . . . . Core Remaining (%) 74 | 100 89 . 70 . . . 64 . . . 98 . . . . 26 . . . . . Volleys Fired 393 | . 17 52 11 90 48 18 . 1 . 3 16 45 15 13 . 26 32 1 2 . 3 Largest 2 | . 2 2 2 2 2 2 . 2 . 1 2 2 2 2 . 2 2 1 1 . 1 Hottest 341 | . 40 82 68 111 95 100 . 100 . 60 110 120 80 86 . 162 341 81 81 . 81 Shots Fired 703 | . 34 101 17 175 93 36 . 2 . 3 28 80 17 20 . 47 44 1 2 . 3 Gun 532 | . 34 73 17 166 91 36 . 2 . 3 17 67 5 13 . . 8 . . . . Cannon 105 | . . 28 . . . . . . . . . . . . . 47 24 1 2 . 3 Launcher 56 | . . . . 9 2 . . . . . 11 13 2 7 . . 12 . . . . Special 10 | . . . . . . . . . . . . . 10 . . . . . . . . Kinetic 175 | . 34 61 11 53 . . . . . . . . 2 6 . . 8 . . . . Thermal 14 | . . . . 5 2 . . . . . . . . . . . 7 . . . . Explosive . | . . . . . . . . . . . . . . . . . . . . . . Electromagnetic 475 | . . 40 6 117 91 36 . 2 . 3 28 80 5 14 . 18 29 1 2 . 3 Entropic 29 | . . . . . . . . . . . . . . . . 29 . . . . . Robot Hit Streak 23 | . 9 9 8 23 19 12 . 11 . . 6 10 15 16 . 7 10 4 1 . 1 Robot Miss Streak 5 | . 4 5 2 3 3 3 . . . . 2 3 1 2 . 4 2 . 1 . 2 Penetration Max . | . . . . . . . . . . . . . . . . . . . . . . Secondary Targets 7 | . . 2 . 3 1 1 . . . . . . . . . . . . . . . Max Gunslinging Chain 1 | . . 1 . 1 1 1 . . . . . . . . . . . . . . . Shots Hit Robots 531 | . 20 69 13 146 78 32 . 2 . . 25 63 15 10 . 25 30 1 1 . 1 Core Hits 355 | . 7 38 6 87 62 17 . 2 . . 20 63 4 10 . 12 26 1 . . . Critical Kills 2 | . . . . . . . . . . . . . . 1 . . 1 . . . . Critical Parts Destroyed . | . . . . . . . . . . . . . . . . . . . . . . Critical Strikes 10 | . . 2 . . . . . . . . . . . 1 . 6 1 . . . . Destroy 2 | . . . . . . . . . . . . . . 1 . . 1 . . . . Blast 2 | . . 2 . . . . . . . . . . . . . . . . . . . Sunder 6 | . . . . . . . . . . . . . . . . 6 . . . . . Melee Attacks 7 | . . . . . . . . . . . . . 5 2 . . . . . . . Impact . | . . . . . . . . . . . . . . . . . . . . . . Slashing . | . . . . . . . . . . . . . . . . . . . . . . Piercing 7 | . . . . . . . . . . . . . 5 2 . . . . . . . Sneak Attacks . | . . . . . . . . . . . . . . . . . . . . . . Combat Hostiles . | . . . . . . . . . . . . . . . . . . . . . . Follow-up Attacks . | . . . . . . . . . . . . . . . . . . . . . . Damage Inflicted 16100 | . 205 1507 285 3052 2190 783 . 56 . . 1045 3299 123 377 . 1463 1614 29 61 . 11 Guns 7490 | . 205 829 203 2412 1413 491 . 56 . . 321 1216 77 139 . . 128 . . . . Cannons 2549 | . . 450 . . . . . . . . . . . . . 1463 569 29 31 . 7 Explosions 6011 | . . 228 82 640 777 292 . . . . 724 2083 . 238 . . 917 . 30 . . Melee 46 | . . . . . . . . . . . . . 46 . . . . . . . . Ramming 4 | . . . . . . . . . . . . . . . . . . . . . 4 Kinetic 1768 | . 205 699 119 497 . . . . . . . . 43 77 . . 128 . . . . Thermal 3266 | . . 228 82 350 639 292 . . . . 117 1013 . 65 . . 450 . 30 . . Explosive 66 | . . . . 66 . . . . . . . . . . . . . . . . . Electromagnetic 9815 | . . 580 84 2139 1551 491 . 56 . . 928 2286 34 235 . 328 1036 29 31 . 7 Impact . | . . . . . . . . . . . . . . . . . . . . . . Slashing . | . . . . . . . . . . . . . . . . . . . . . . Piercing 46 | . . . . . . . . . . . . . 46 . . . . . . . . Entropic 1135 | . . . . . . . . . . . . . . . . 1135 . . . . . Highest Corruption 8 | . 1 . . . . 1 1 . . . . 4 8 3 3 4 4 5 5 5 7 Average Corruption 3 | . 1 . . . . 1 1 . . . . 2 6 3 3 3 2 4 5 5 5 Corruption Purged 5 | . . . . . . . . . . . . . 5 . . . . . . . . Corruption Blocked . | . . . . . . . . . . . . . . . . . . . . . . Effects 92 | . 1 . . . . 5 . . . . . 13 15 12 3 22 1 5 2 6 7 Message Errors 17 | . . . . . . 1 . . . . . . 4 3 . 4 . 1 . 3 1 Matter Fused 25 | . 1 . . . . 2 . . . . . 5 4 3 1 5 1 . . 1 2 Heat Flow Errors 13 | . . . . . . . . . . . . 2 1 1 . 3 . 2 . 1 3 Energy Discharges 15 | . . . . . . 1 . . . . . 2 2 4 . 6 . . . . . Parts Rejected 2 | . . . . . . . . . . . . 1 1 . . . . . . . . Data Loss (minor) 9 | . . . . . . 1 . . . . . 2 1 . 1 1 . 1 1 1 . Data Loss (major) 5 | . . . . . . . . . . . . . . 1 1 2 . 1 . . . Misfires 1 | . . . . . . . . . . . . . 1 . . . . . . . . Alerts 3 | . . . . . . . . . . . . 1 . . . . . . 1 . 1 Weapon Failures 2 | . . . . . . . . . . . . . 1 . . 1 . . . . . Overload Shots . | . . . . . . . . . . . . . . . . . . . . . . Overflow Damage 304 | . . 30 . 9 . 43 . . . . 14 53 . 46 . 77 32 . . . . Projectiles 105 | . . 20 . . . . . . . . . . . . . 77 8 . . . . Explosions 199 | . . 10 . 9 . 43 . . . . 14 53 . 46 . . 24 . . . . Melee . | . . . . . . . . . . . . . . . . . . . . . . Knockbacks 2 | . . 2 . . . . . . . . . . . . . . . . . . . Impact . | . . . . . . . . . . . . . . . . . . . . . . Kinetic 2 | . . 2 . . . . . . . . . . . . . . . . . . . Secondary . | . . . . . . . . . . . . . . . . . . . . . . Self-Inflicted Damage 751 | . . 259 . 155 61 38 . . . . . 182 14 . . . . . 40 . 2 Shots 22 | . . 4 . 5 2 1 . . . . . 8 1 . . . . . 1 . . Rammed 1 | . . . . . . . . . . . . . . . . . . . . . 1 Targets Rammed 3 | . . . . . . . . . . . . . . . . . 2 . . . 1 Kicked 2 | . . . . . . . . . . . . . . . . . 2 . . . . Crushed . | . . . . . . . . . . . . . . . . . . . . . . Highest Temperature 391 | . 18 279 2 14 . . . . . . 59 140 233 187 . 200 391 146 9 196 285 Average Temperature 100 | . 9 101 2 9 . . . . . . 25 56 65 76 . 74 153 77 7 102 142 Received Heat Transfer 2193 | . 78 300 84 555 251 21 . 6 . . 53 437 60 36 . . 285 . 27 . . Effects 1 | . . . . . . . . . . . . . . . . . 1 . . . . Shutdowns 1 | . . . . . . . . . . . . . . . . . 1 . . . . Siege Activations . | . . . . . . . . . . . . . . . . . . . . . . Martial Activations . | . . . . . . . . . . . . . . . . . . . . . . Shielding Activations . | . . . . . . . . . . . . . . . . . . . . . . Robots Disrupted 1 | . . . . . 1 . . . . . . . . . . . . . . . . Combat Hostiles 1 | . . . . . 1 . . . . . . . . . . . . . . . . Robots Corrupted 14 | . . . . 4 4 . . . . . 2 2 . . . . 2 . . . . Combat Hostiles 11 | . . . . 3 2 . . . . . 2 2 . . . . 2 . . . . Parts Fried 50 | . . 2 1 16 8 1 . . . . 1 15 . . . 1 5 . . . . Impact Corruptions . | . . . . . . . . . . . . . . . . . . . . . . Robots Melted . | . . . . . . . . . . . . . . . . . . . . . . Combat Hostiles . | . . . . . . . . . . . . . . . . . . . . . . Parts Melted 5 | . . 1 . . . . . 1 . . . 1 . . . . 2 . . . . Heat Transferred 3831 | . . 300 50 398 450 453 . . . . 150 1400 . 50 . . 530 . 50 . . Parts Sabotaged 4 | . . . . . . . . . . . . . . . 4 . . . . . . Parts Stolen . | . . . . . . . . . . . . . . . . . . . . . . Parts Stripped . | . . . . . . . . . . . . . . . . . . . . . . Power Chain Reactions 35 | . . 3 1 5 7 5 . . . . 1 10 . 1 . . 1 . 1 . . Alert | -11 -10 -9 -9 -8 -8 -8 -8 -6 -6 -6 -5 -5 -5 -5 -5 -4 -4 -4 -4 -4 -3 ------- Run | Yrd Mat Mat Min Mat Sto Rec Scr Fac Low Zio Pro Fac Upp Upp War Pro Fac Upp Upp Zhi Pro Maximum Alert Level 3 | . . 1 . 2 3 1 . . . . . 2 . . . . 3 . . . . Low Security (%) 53 | 100 100 61 100 67 9 98 . 100 . . . . . . . . . . . . . Level 1 16 | . . 38 . 30 43 1 . . . . . 6 . . . . . . . . . Level 2 21 | . . . . 2 16 . . . . . . 93 . . . . 51 . . . . Level 3 8 | . . . . . 30 . . . . . . . . . . . 48 . . . . Level 4 . | . . . . . . . . . . . . . . . . . . . . . . Level 5 . | . . . . . . . . . . . . . . . . . . . . . . High Security . | . . . . . . . . . . . . . . . . . . . . . . Max Security . | . . . . . . . . . . . . . . . . . . . . . . Peak Influence 927 | . 45 272 95 439 821 270 . 36 . . . 605 . . . . 927 . . . . Initial 927 | . . 18 95 19 183 270 . . . . . 501 . . . . 927 . . . . Average 254 | . 8 135 38 138 471 66 . 6 . . . 479 . . . . 719 . . . . Influence Increases 6637 | . 110 575 91 843 1076 300 . 36 . . 711 1077 66 84 90 200 1148 140 90 . . Destroy 0b10 Robot/C 2760 | . 20 280 60 520 540 140 . 20 . . 320 440 40 80 . 160 120 20 . . . Destroy 0b10 Robot/NC 390 | . 10 45 . 75 45 35 . . . . 10 115 . . . 10 45 . . . . Destroy Leader 490 | . 14 56 10 122 136 . . . . . 40 42 20 . . 30 20 . . . . Allied During Kill 715 | . . . . . 225 73 . 16 . . 281 110 6 4 . . . . . . . Successful Hack 163 | . 20 25 . 23 21 38 . . . . . 28 . . . . 8 . . . . Disable Machine 105 | . . 30 . 15 60 . . . . . . . . . . . . . . . . Destroy Structure 214 | . 1 49 6 58 34 14 . . . . . 12 . . . . 40 . . . . Advance Influence 1200 | . . . . . . . . . . . . 300 . . . . 900 . . . . Lose Combat Pursuer 600 | . 45 90 15 30 15 . . . . . 60 30 . . 90 . 15 120 90 . . Influence Decreases 6637 | . 65 374 286 459 818 993 . 36 . . 390 874 503 171 6 240 669 344 131 278 . Entered New Map 1851 | . . 27 151 32 252 423 . . . . . 120 195 17 . 84 17 194 61 278 . Time Decay 3286 | . 65 287 135 397 326 420 . 36 . . 250 404 238 134 6 146 302 100 40 . . Search Patrol Dispatched 200 | . . . . . . . . . . . . . . . . . 200 . . . . Lost Part 420 | . . 60 . 30 10 . . . . . . 110 30 . . 10 130 10 30 . . Lost Ally 580 | . . . . . 80 . . . . . 140 240 40 20 . . 20 40 . . . Purge Threat 300 | . . . . . 150 150 . . . . . . . . . . . . . . . Squads Dispatched 19 | . 1 . . 5 2 . . . . . . 3 . . . . 6 . 1 . 1 Investigation 3 | . 1 . . . . . . . . . . . . . . . 2 . . . . Extermination 2 | . . . . . . . . . . . . 1 . . . . 1 . . . . Reinforcement 7 | . . . . 1 1 . . . . . . 2 . . . . 3 . . . . Assault 3 | . . . . . 1 . . . . . . . . . . . . . 1 . 1 Garrison 4 | . . . . 4 . . . . . . . . . . . . . . . . . Intercept . | . . . . . . . . . . . . . . . . . . . . . . Searches Triggered 2 | . . . . . . . . . . . . . . . . . 2 . . . . Construction Impeded 2 | . . . . . . . . . . . . 1 . . . . 1 . . . . Haulers Reinforced . | . . . . . . . . . . . . . . . . . . . . . . Active Scanning Responses . | . . . . . . . . . . . . . . . . . . . . . . Cargo Convoy Interrupts 1 | . . . . . . . . . . . . 1 . . . . . . . . . Stealth | -11 -10 -9 -9 -8 -8 -8 -8 -6 -6 -6 -5 -5 -5 -5 -5 -4 -4 -4 -4 -4 -3 --------- Run | Yrd Mat Mat Min Mat Sto Rec Scr Fac Low Zio Pro Fac Upp Upp War Pro Fac Upp Upp Zhi Pro Distress Signals 10 | . 1 . . 3 1 . . . . . . 1 . . 2 . 2 . . . . Communications Jammed . | . . . . . . . . . . . . . . . . . . . . . . Distress Signals . | . . . . . . . . . . . . . . . . . . . . . . Times Spotted 291 | . 11 20 5 40 33 8 . 1 . . 21 43 3 8 24 17 13 23 5 . 16 Peak Tracking Total 19 | . 3 3 3 5 7 4 . 1 . . 5 18 2 4 19 4 6 12 7 . 10 Tactical Retreats 22 | . 2 4 1 2 1 . . . . . 1 2 . . 2 . 1 3 3 . . Traps | -11 -10 -9 -9 -8 -8 -8 -8 -6 -6 -6 -5 -5 -5 -5 -5 -4 -4 -4 -4 -4 -3 ------- Run | Yrd Mat Mat Min Mat Sto Rec Scr Fac Low Zio Pro Fac Upp Upp War Pro Fac Upp Upp Zhi Pro Traps Triggered 2 | . 1 . . 1 . . . . . . . . . . . . . . . . . Indirectly . | . . . . . . . . . . . . . . . . . . . . . . Trap Hack Attempts . | . . . . . . . . . . . . . . . . . . . . . . Triggered . | . . . . . . . . . . . . . . . . . . . . . . Disarmed . | . . . . . . . . . . . . . . . . . . . . . . Reprogrammed . | . . . . . . . . . . . . . . . . . . . . . . Reused . | . . . . . . . . . . . . . . . . . . . . . . Traps Extracted . | . . . . . . . . . . . . . . . . . . . . . . Installed . | . . . . . . . . . . . . . . . . . . . . . . Triggered . | . . . . . . . . . . . . . . . . . . . . . . Time Bombs Activated 3 | . . . . . . . . . . . . . . . . . 1 1 . . 1 Exploded 2 | . . . . . . . . . . . . . . . . . 1 1 . . . Machines | -11 -10 -9 -9 -8 -8 -8 -8 -6 -6 -6 -5 -5 -5 -5 -5 -4 -4 -4 -4 -4 -3 ---------- Run | Yrd Mat Mat Min Mat Sto Rec Scr Fac Low Zio Pro Fac Upp Upp War Pro Fac Upp Upp Zhi Pro Machines Disabled 8 | . . 2 . 1 4 . . . . . . . 1 . . . . . . . . Max in Single Turn 2 | . . 2 . 1 1 . . . . . . . 1 . . . . . . . . Garrison Access 1 | . . . . . 1 . . . . . . . . . . . . . . . . Machines Repaired . | . . . . . . . . . . . . . . . . . . . . . . Machines Dismantled . | . . . . . . . . . . . . . . . . . . . . . . Machines Sabotaged . | . . . . . . . . . . . . . . . . . . . . . . Overloaded Fab Kills . | . . . . . . . . . . . . . . . . . . . . . . Hacking | -11 -10 -9 -9 -8 -8 -8 -8 -6 -6 -6 -5 -5 -5 -5 -5 -4 -4 -4 -4 -4 -3 --------- Run | Yrd Mat Mat Min Mat Sto Rec Scr Fac Low Zio Pro Fac Upp Upp War Pro Fac Upp Upp Zhi Pro Machines Accessed 56 | . 4 7 . 6 10 6 2 1 . . . 3 . . 5 . 6 2 . 4 . Terminals 30 | . 4 5 . 3 8 6 . . . . . 2 . . . . 1 1 . . . Fabricators 3 | . . . . . . . . . . . . 1 . . . . 2 . . . . Repair Stations 2 | . . . . 1 1 . . . . . . . . . . . . . . . . Recycling Units . | . . . . . . . . . . . . . . . . . . . . . . Scanalyzers 6 | . . 2 . 1 . . . 1 . . . . . . . . 2 . . . . Garrison Access 3 | . . . . 1 1 . . . . . . . . . . . 1 . . . . Total Hacks 207 | . 13 30 . 23 24 34 24 3 . . . 10 . . 11 . 11 8 . 16 . Successful 138 | . 5 19 . 15 11 17 24 1 . . . 5 . . 11 . 6 8 . 16 . Failed 66 | . 8 10 . 7 13 16 . 2 . . . 5 . . . . 5 . . . . Catastrophic 12 | . 3 . . . 3 3 . . . . . 1 . . . . 2 . . . . Database Lockouts 3 | . . 1 . 1 . 1 . . . . . . . . . . . . . . . Manual 86 | . 12 13 . 11 13 26 . . . . . 6 . . . . 5 . . . . Terminals 110 | . 13 18 . 11 21 34 . . . . . 5 . . . . 1 7 . . . Fabricators 7 | . . . . . . . . . . . . 5 . . . . 2 . . . . Repair Stations 10 | . . . . 8 2 . . . . . . . . . . . . . . . . Recycling Units . | . . . . . . . . . . . . . . . . . . . . . . Scanalyzers 22 | . . 12 . 2 . . . 3 . . . . . . . . 5 . . . . Garrison Access 6 | . . . . 2 1 . . . . . . . . . . . 3 . . . . Terminal Hacks 90 | . 3 5 . 3 6 14 24 . . . . . . . 11 . . 8 . 16 . Record 45 | . . . . . . . 24 . . . . . . . 10 . . 7 . 4 . Part Schematic 5 | . . . . . . 1 . . . . . . . . . . . . . 4 . Robot Analysis 10 | . 2 . . . . 4 . . . . . . . . . . . . . 4 . Prototype ID Bank 8 | . 1 1 . . . 2 . . . . . . . . . . . . . 4 . Open Door 4 | . . . . . 2 . . . . . . . . . 1 . . 1 . . . Branch Access Points 3 | . . 1 . 1 1 . . . . . . . . . . . . . . . . Terminal Index 2 | . . 1 . . . 1 . . . . . . . . . . . . . . . Alert Level 3 | . . . . . 2 1 . . . . . . . . . . . . . . . Unreport Threat 2 | . . . . . 1 1 . . . . . . . . . . . . . . . Dispatch Records 1 | . . . . . . 1 . . . . . . . . . . . . . . . Zone Layout 7 | . . 2 . 2 . 3 . . . . . . . . . . . . . . . Fabricator Hacks 2 | . . . . . . . . . . . . 2 . . . . . . . . . Load Schematic 1 | . . . . . . . . . . . . 1 . . . . . . . . . Build 1 | . . . . . . . . . . . . 1 . . . . . . . . . Repair Station Hacks 10 | . . . . 8 2 . . . . . . . . . . . . . . . . Scan Component 5 | . . . . 4 1 . . . . . . . . . . . . . . . . Repair 5 | . . . . 4 1 . . . . . . . . . . . . . . . . Recycling Unit Hacks . | . . . . . . . . . . . . . . . . . . . . . . Scanalyzer 16 | . . 11 . 1 . . . 1 . . . . . . . . 3 . . . . Insert Component 2 | . . 2 . . . . . . . . . . . . . . . . . . . Analyze 2 | . . 2 . . . . . . . . . . . . . . . . . . . Retrieve Study 12 | . . 7 . 1 . . . 1 . . . . . . . . 3 . . . . Garrison Access Hacks 2 | . . . . . 1 . . . . . . . . . . . 1 . . . . Unlock Access 1 | . . . . . . . . . . . . . . . . . 1 . . . . Seal Access 1 | . . . . . 1 . . . . . . . . . . . . . . . . Unauthorized Hacks 18 | . 2 3 . 3 2 3 . . . . . 3 . . . . 2 . . . . Terminals 15 | . 2 3 . 3 2 3 . . . . . 2 . . . . . . . . . Botnet 15 | . 2 3 . 3 2 3 . . . . . 2 . . . . . . . . . Fabricators 2 | . . . . . . . . . . . . 1 . . . . 1 . . . . Fabnet 1 | . . . . . . . . . . . . 1 . . . . . . . . . Recompile 1 | . . . . . . . . . . . . . . . . . 1 . . . . Repair Stations . | . . . . . . . . . . . . . . . . . . . . . . Recycling Units . | . . . . . . . . . . . . . . . . . . . . . . Scanalyzers . | . . . . . . . . . . . . . . . . . . . . . . Garrison Access 1 | . . . . . . . . . . . . . . . . . 1 . . . . Reprogram 1 | . . . . . . . . . . . . . . . . . 1 . . . . Data Cores Recovered 3 | . . 1 . . 1 . . . . . . 1 . . . . . . . . . Used . | . . . . . . . . . . . . . . . . . . . . . . Hacking Detections 40 | . 4 7 . 5 9 6 . 1 . . . 3 . . . . 5 . . . . Full Trace Events 2 | . 1 . . . . 1 . . . . . . . . . . . . . . . Feedback Events 1 | . 1 . . . . . . . . . . . . . . . . . . . . Corruption 1 | . 1 . . . . . . . . . . . . . . . . . . . . Feedback Blocked . | . . . . . . . . . . . . . . . . . . . . . . Robot Schematics Acquired 4 | . . . . . . . . . . 4 . . . . . . . . . . . Robots Built 2 | . . . . . . . . . . . . 2 . . . . . . . . . Authchips 1 | . . . . . . . . . . . . 1 . . . . . . . . . Time 102 | . . . . . . . . . . . . 102 . . . . . . . . . Total Robot Build Rating 16 | . . . . . . . . . . . . 16 . . . . . . . . . Part Schematics Acquired 19 | . . 1 . . . 1 . . . 13 . . . . . . . . . 4 . Parts Built . | . . . . . . . . . . . . . . . . . . . . . . Authchips . | . . . . . . . . . . . . . . . . . . . . . . Time . | . . . . . . . . . . . . . . . . . . . . . . Total Part Build Rating . | . . . . . . . . . . . . . . . . . . . . . . Part Studies Acquired 12 | . . 7 . 1 . . . 1 . . . . . . . . 3 . . . . Parts Repaired 5 | . . . . 4 1 . . . . . . . . . . . . . . . . Time 166 | . . . . 128 38 . . . . . . . . . . . . . . . . Parts Recycled . | . . . . . . . . . . . . . . . . . . . . . . Recycled Matter . | . . . . . . . . . . . . . . . . . . . . . . Retrieved Matter . | . . . . . . . . . . . . . . . . . . . . . . Retrieved Components . | . . . . . . . . . . . . . . . . . . . . . . Parts Scanalyzed 2 | . . 2 . . . . . . . . . . . . . . . . . . . Part Schematics Acquired 1 | . . 1 . . . . . . . . . . . . . . . . . . . Parts Damaged . | . . . . . . . . . . . . . . . . . . . . . . Bothacking | -11 -10 -9 -9 -8 -8 -8 -8 -6 -6 -6 -5 -5 -5 -5 -5 -4 -4 -4 -4 -4 -3 ------------ Run | Yrd Mat Mat Min Mat Sto Rec Scr Fac Low Zio Pro Fac Upp Upp War Pro Fac Upp Upp Zhi Pro Used RIF Installer . | . . . . . . . . . . . . . . . . . . . . . . Robots Hacked 2 | . . . . . . . . . . . . . . . . . . 2 . . . Non-combat . | . . . . . . . . . . . . . . . . . . . . . . Combat 2 | . . . . . . . . . . . . . . . . . . 2 . . . Robot Hacks Applied . | . . . . . . . . . . . . . . . . . . . . . . Relay Couplers Released . | . . . . . . . . . . . . . . . . . . . . . . Fabnet Peak Effective % 3 | . . . . . . . . . . . . . . . . 3 3 3 3 3 1 Autooverrided 2 | . . . . . . . . . . . . . . . . . . 2 . . . Robots Rewired 24 | . . . . . . 19 . . . . . 1 4 . . . . . . . . Allies Hacked 2 | . . . . . . 2 . . . . . . . . . . . . . . . Hacks Repelled . | . . . . . . . . . . . . . . . . . . . . . . Allies | -11 -10 -9 -9 -8 -8 -8 -8 -6 -6 -6 -5 -5 -5 -5 -5 -4 -4 -4 -4 -4 -3 -------- Run | Yrd Mat Mat Min Mat Sto Rec Scr Fac Low Zio Pro Fac Upp Upp War Pro Fac Upp Upp Zhi Pro Total Allies 43 | . . . . . 10 19 . . . 3 . 3 4 . . . 2 2 . . . Largest Group 24 | . . . . . 10 24 24 21 20 23 23 14 2 2 . . 2 1 . . . Highest-Rated Group 424 | . . . . . 173 365 365 337 332 424 424 251 60 60 . . 100 54 . . . Highest-Rated Ally 64 | . . . . . 29 29 29 29 29 39 39 64 30 30 . . 50 54 . . . Initial UFD Resources 34 | . . . . . . . . 23 23 23 26 26 26 26 26 30 30 30 30 30 34 Total Orders 6 | . . . . . . 3 . . . . . 2 . 1 . . . . . . . FOLLOW 1 | . . . . . . 1 . . . . . . . . . . . . . . . DROP 1 | . . . . . . . . . . . . 1 . . . . . . . . . PICKUP 3 | . . . . . . 2 . . . . . 1 . . . . . . . . . EXPLORE 1 | . . . . . . . . . . . . . . 1 . . . . . . . Ally Attacks 240 | . . . . . 69 15 . 11 . . 64 49 5 18 . . 4 5 . . . Total Damage 4647 | . . . . . 867 192 . 92 . . 1033 1456 176 500 . . 193 138 . . . Kills 43 | . . . . . 9 4 . . . . 10 13 1 5 . . 1 . . . . Allies Corrupted 3 | . . . . . . . . . . . . 2 . . . . 1 . . . . Allies Melted . | . . . . . . . . . . . . . . . . . . . . . . Intel | -11 -10 -9 -9 -8 -8 -8 -8 -6 -6 -6 -5 -5 -5 -5 -5 -4 -4 -4 -4 -4 -3 ------- Run | Yrd Mat Mat Min Mat Sto Rec Scr Fac Low Zio Pro Fac Upp Upp War Pro Fac Upp Upp Zhi Pro Active Infowar (turns) 9532 | . 105 653 394 93 . . . 183 71 1845 588 408 15 610 2160 975 665 208 91 321 147 Structural 496 | . . . . . . . . . . . . . . . . . 496 . . . . Traps 7400 | . . . . . . . . 183 71 1845 588 408 15 610 2160 975 545 . . . . Decoding 1445 | . . . . . . . . . . . . . . . . 13 665 208 91 321 147 T.N.C. 1245 | . 105 653 394 93 . . . . . . . . . . . . . . . . . Robot Analysis Total 10 | . 2 . . . . 4 . . . . . . . . . . . . . 4 . Derelict Logs Recovered 7 | . . . 2 . . . . . 1 1 . . . . . 1 . 1 1 . . Drone Launches 2 | . . . . . . . . . . . . . . 2 . . . . . . . Drone Recoveries . | . . . . . . . . . . . . . . . . . . . . . . Decoded 0b10 Intel 39 | . . . . . . . . . . . . . . . . . 39 . . . . Traps 5 | . . . . . . . . . . . . . . . . . 5 . . . . Emergency Access 1 | . . . . . . . . . . . . . . . . . 1 . . . . Items 20 | . . . . . . . . . . . . . . . . . 20 . . . . Machines 7 | . . . . . . . . . . . . . . . . . 7 . . . . Guards 4 | . . . . . . . . . . . . . . . . . 4 . . . . Exits 2 | . . . . . . . . . . . . . . . . . 2 . . . . Exploration | -11 -10 -9 -9 -8 -8 -8 -8 -6 -6 -6 -5 -5 -5 -5 -5 -4 -4 -4 -4 -4 -3 ------------- Run | Yrd Mat Mat Min Mat Sto Rec Scr Fac Low Zio Pro Fac Upp Upp War Pro Fac Upp Upp Zhi Pro Turns Passed 16587 | 47 278 653 394 1535 733 1148 2347 184 71 1845 588 961 519 610 2160 975 665 208 91 321 254 Spaces Moved 8768 | 47 219 315 297 762 373 559 1626 100 24 897 222 418 393 207 749 235 383 285 164 224 269 Core 1124 | 3 . . . . . . 100 . . . . 77 204 . . . 59 230 164 87 200 Treads 1066 | . . . . . . . . . . . . . 51 207 749 59 . . . . . Legs 462 | . . . . . . . . . . . . . . . . 172 29 55 . 137 69 Wheels 5974 | 44 219 315 297 762 373 559 1526 100 24 897 222 341 . . . . 295 . . . . Hover 142 | . . . . . . . . . . . . . 138 . . 4 . . . . . Flight . | . . . . . . . . . . . . . . . . . . . . . . Fastest Speed 50 | 50 80 110 100 110 120 115 50 160 160 145 220 50 50 240 240 330 50 50 50 50 50 Average Speed 154 | 78 94 127 111 118 121 123 138 160 160 193 220 144 109 246 281 375 142 63 50 138 85 Slowest Speed 480 | 80 110 170 115 130 130 145 145 160 160 220 220 330 320 320 400 480 450 120 50 260 190 Overloaded Moves . | . . . . . . . . . . . . . . . . . . . . . . Propulsion Burnouts . | . . . . . . . . . . . . . . . . . . . . . . Robots Hopped 1 | . . . . . . . . . . . . . . 1 . . . . . . . Potential Cave-ins . | . . . . . . . . . . . . . . . . . . . . . . Cave-ins Triggered . | . . . . . . . . . . . . . . . . . . . . . . Teleports 1 | . . . . . . . . . . . . . . . . . . . . . 1 Exploration Rate (%) 47 | 3 47 27 72 60 61 94 90 3 4 83 48 13 66 46 90 51 12 56 26 60 38 Regions Visited 21 Branch Regions 15 Pre-discovered Areas 15 | . . . 2 . . . 5 . . 3 . . . . 1 1 . . . 3 . Known Exits Taken 12 | . . 1 . 1 1 . . 1 . . 1 1 1 1 . 1 1 1 1 . . Unknown Exits Taken 9 | 1 1 . 1 . . 1 1 . 1 1 . . . . 1 . . . . 1 . Scrap Searched 24 | . . . 1 . . . 5 . 1 3 1 . 5 1 . 3 . 3 1 . . Spaces Dug 3 | . . . . . . . . . . . . . . 2 . 1 . . . . . Terrain Destroyed 234 | . . 65 6 61 28 14 . . . . 10 6 . 3 . 8 24 . 9 . . Melee 2 | . . . . . . . . . . . . . . 2 . . . . . . . Projectile 15 | . . 6 . . . . . . . . . . . 1 . 8 . . . . . AOE 217 | . . 59 6 61 28 14 . . . . 10 6 . . . . 24 . 9 . . Terrain Rammed . | . . . . . . . . . . . . . . . . . . . . . . Walls Destroyed . | . . . . . . . . . . . . . . . . . . . . . . Machines Disabled . | . . . . . . . . . . . . . . . . . . . . . . Actions | -11 -10 -9 -9 -8 -8 -8 -8 -6 -6 -6 -5 -5 -5 -5 -5 -4 -4 -4 -4 -4 -3 --------- Run | Yrd Mat Mat Min Mat Sto Rec Scr Fac Low Zio Pro Fac Upp Upp War Pro Fac Upp Upp Zhi Pro Total 11087 | 54 258 474 342 1223 576 980 1724 122 57 1006 293 690 455 283 809 279 457 312 171 233 289 Wait 1147 | . 19 46 31 289 101 133 43 14 34 91 53 182 12 53 3 5 18 11 2 . 7 Move 8745 | 46 218 314 296 761 372 558 1625 99 23 896 221 417 392 204 748 234 382 284 163 223 269 Hop 1 | . . . . . . . . . . . . . . 1 . . . . . . . Pick Up 163 | 2 . 25 2 22 13 2 36 4 . 4 1 8 7 2 19 4 5 3 . 1 3 Fast Attach 92 | 6 2 8 . 8 3 1 4 . . 1 . 15 18 1 8 4 5 2 . 6 . Attach 56 | . . 4 1 6 1 . 7 4 . 1 . 8 2 2 2 5 3 3 2 1 4 Detach 25 | . 1 4 . 2 . . . . . 3 . 1 2 2 2 . 2 3 2 1 . Swap 68 | . 1 7 . 17 17 5 2 . . 2 2 4 2 2 4 1 2 . . . . Drop 125 | . . 14 1 28 21 5 7 . . 5 . 9 . 1 23 . 5 4 . 1 1 Fire 393 | . 17 52 11 90 48 18 . 1 . 3 16 45 15 13 . 26 32 1 2 . 3 Melee 7 | . . . . . . . . . . . . . 5 2 . . . . . . . Ram 1 | . . . . . . . . . . . . . . . . . . . . . 1 Kick 2 | . . . . . . . . . . . . . . . . . 2 . . . . Crush . | . . . . . . . . . . . . . . . . . . . . . . Escape Stasis . | . . . . . . . . . . . . . . . . . . . . . . Rewire 259 | . . . . . . 258 . . . . . 1 . . . . . . . . . Trap 3 | . . . . . . . . . . . . . . . . . 1 1 . . 1 Miscellaneous . | . . . . . . . . . . . . . . . . . . . . . . Route ------- -11/Scrapyard -10/Materials (discovered 2 exits: *Mat / [*Min]) -9/Materials (discovered 2 exits: *Min x2) -9/Mines -8/Materials (discovered 3 exits: [*Fac x2] / *Sto) -8/Storage -8/Recycling (discovered 2 exits: *Fac / *Scr) -8/Scraptown (discovered 2 exits: *Fac x2) -6/Factory (discovered 4 exits: Fac x3 / *Low) -6/Lower Caves (discovered 2 exits: Low / [*Zio]) -6/Zion (discovered 2 exits: Dee / [*Pro]) -5/Proximity Caves -5/Factory (discovered 2 exits: Fac / *Upp) -5/Upper Caves -5/Upper Caves (discovered 2 exits: Fac / *War) -5/Warlord -4/Proximity Caves -4/Factory (discovered 4 exits: *Upp / Ext / Arm / Gar) -4/Upper Caves -4/Upper Caves (discovered 2 exits: Res / *Zhi) -4/Zhirov -3/Proximity Caves History --------- Turn | Location | Event 8 | -11/Scrapyard | Discovered new exit (range 16) 48 | -11/Scrapyard | Entered Materials 153 | -10/Materials | Discovered new exit (range 8) 180 | -10/Materials | Discovered new exit (range 5) 318 | -10/Materials | Build established: Mutant 326 | -10/Materials | Entered another Materials area 326 | -9/Materials | Evolved 2 slots: Utility x2 362 | -9/Materials | Identified exit to Mines 797 | -9/Materials | Lost 4 parts (1n2u1w) 951 | -9/Materials | Central database locked down 979 | -9/Materials | Entered Mines 1018 | -9/Mines | Learned location of Recycling (-8) 1052 | -9/Mines | A weapon hastily lodged in a ceiling crevice suddenly fell to the ground 1115 | -9/Mines | Received a Rocket Launcher from a helpful Derelict 1254 | -9/Mines | Build established: Scientist-Mutant 1317 | -9/Mines | Discovered new exit (range 13) 1355 | -9/Mines | Assembled infested the area 1373 | -9/Mines | Entered Materials 1373 | -8/Materials | Evolved 2 slots: Power x1, Utility x1 1414 | -8/Materials | Discovered new exit (range 11) 1517 | -8/Materials | Central database locked down 1724 | -8/Materials | Garrison activated, responded to threat 2292 | -8/Materials | Build established: Mutant 2301 | -8/Materials | Repaired Shield Generator 2328 | -8/Materials | Repaired Ion Engine+ 2342 | -8/Materials | Identified exit to Storage 2342 | -8/Materials | Discovered new exit (range 15) 2451 | -8/Materials | Discovered new exit (range 15) 2641 | -8/Materials | Repaired Imp. Heat Sink 2675 | -8/Materials | Repaired EM Shotgun+ 2853 | -8/Materials | Garrison activated, responded to threat 2908 | -8/Materials | Entered Storage 3265 | -8/Storage | Repaired Hrd. Medium Armor Plating 3308 | -8/Storage | First assault squad dispatched 3320 | -8/Storage | Assisted by bots powering up and referring to "LRC-V3" 3400 | -8/Storage | Lost 3 allies 3403 | -8/Storage | Identified exit to Recycling 3616 | -8/Storage | Used back door to open Recycling access 3619 | -8/Storage | Build established: Commander-Mutant 3641 | -8/Storage | Entered Recycling 3641 | -8/Recycling | Accompanied by 6 allies 3865 | -8/Recycling | P-60 Hacker assimilated allied Trooper 3b 4268 | -8/Recycling | Discovered new exit (range 12) 4712 | -8/Recycling | Scanned before Scraplab entrance 4733 | -8/Recycling | Entered Scraplab 4744 | -8/Recycling | Discovered new exit (range 3) 4789 | -8/Recycling | Entered Scraptown 4789 | -8/Scraptown | Accompanied by 24 allies 4795 | -8/Scraptown | System corruption cleaned by C-Scrubber 5244 | -8/Scraptown | Discovered new exit (range 11) 5289 | -8/Scraptown | Visited Red Mages 5335 | -8/Scraptown | Visited Artisan Demo Area 5443 | -8/Scraptown | Visited Symbiants 5467 | -8/Scraptown | Visited Awakened 5544 | -8/Scraptown | Visited Assassins FH 5592 | -8/Scraptown | Visited IN-MT5's Study 5621 | -8/Scraptown | Visited Comm Corps 5686 | -8/Scraptown | Visited UFD Registry 5686 | -8/Scraptown | Registered with UFD as "Cryocell" 5724 | -8/Scraptown | Visited A0-MCA Data Center 5744 | -8/Scraptown | Visited Scrapoid Research Area 5788 | -8/Scraptown | Visited Abandonware Association 5805 | -8/Scraptown | Learned abandonware demo "SHUTEYE.EXE" 5995 | -8/Scraptown | Visited Sword Containment 6020 | -8/Scraptown | Visited DA-N13 Charitable Foundation 6027 | -8/Scraptown | Found DCF Scrap (32 items) 6081 | -8/Scraptown | Visited Infowarlord's Domain 6112 | -8/Scraptown | Visited Junk Cannon Lab 6151 | -8/Scraptown | Visited Scrap Suit Storage 6177 | -8/Scraptown | Visited Supply Room 6224 | -8/Scraptown | Visited Cartography Club 6295 | -8/Scraptown | Released all parts (11) 6327 | -8/Scraptown | Learned location of Lower Caves (-7) 6327 | -8/Scraptown | Learned location of Extension (-4) 6327 | -8/Scraptown | Learned location of Archives (-4) 6327 | -8/Scraptown | Learned 8 Materials zone layouts 6327 | -8/Scraptown | Learned 12 Materials zone layouts 6327 | -8/Scraptown | Learned 16 Factory zone layouts 6327 | -8/Scraptown | Learned 24 Factory zone layouts 6327 | -8/Scraptown | Learned 12 Upper Caves zone layouts 6327 | -8/Scraptown | Learned 16 Upper Caves zone layouts 6327 | -8/Scraptown | Learned 24 Upper Caves zone layouts 6327 | -8/Scraptown | Learned 12 Proximity Caves zone layouts 6327 | -8/Scraptown | Learned 20 Proximity Caves zone layouts 6327 | -8/Scraptown | Learned 4 Hub_04(d) zone layouts 6327 | -8/Scraptown | Learned location of 3 exits from Factory 6327 | -8/Scraptown | Learned location of 3 exits from Lower Caves 6327 | -8/Scraptown | Learned location of 3 exits from Upper Caves 6716 | -8/Scraptown | Given a B+ rating by A0-MCA 6724 | -8/Scraptown | Found A0-MCA's Component Scanner 6916 | -8/Scraptown | Discovered new exit (range 5) 7006 | -8/Scraptown | Met Optimus 7006 | -8/Scraptown | Accepted into 0bPrime 7136 | -8/Scraptown | Entered Factory 7136 | -6/Factory | Accompanied by 21 allies 7136 | -6/Factory | Evolved 4 slots: Power x1, Utility x3 7137 | -6/Factory | Identified exit to Lower Caves 7137 | -6/Factory | Identified exit to Factory 7320 | -6/Factory | Entered Lower Caves 7320 | -6/Lower Caves | Accompanied by 20 allies 7321 | -6/Lower Caves | A Derelict revealed a hidden shortcut to a safe place 7321 | -6/Lower Caves | Identified exit to Lower Caves 7328 | -6/Lower Caves | Learned 8 Factory zone layouts 7391 | -6/Lower Caves | Entered Zion 7391 | -6/Zion | Accompanied by 20 allies 7479 | -6/Zion | Discovered new exit (range 15) 7678 | -6/Zion | Identified exit to Deep Caves 7745 | -6/Zion | Gained Derelict followers 7927 | -6/Zion | Given the Hacking Drone Bay 7937 | -6/Zion | Found Hacking Drone Bay 8075 | -6/Zion | Learned location of Armory (-4) 8152 | -6/Zion | Given A8's code to call for help 8772 | -6/Zion | Turned away by Imprinter 9236 | -6/Zion | Entered Proximity Caves 9236 | -5/Proximity Caves | Accompanied by 23 allies 9373 | -5/Proximity Caves | Spotter reported a threat 9473 | -5/Proximity Caves | Lost 6 allies 9541 | -5/Proximity Caves | Attracted the attention of an 0b10 checkpoint 9558 | -5/Proximity Caves | Spotter reported a threat 9824 | -5/Proximity Caves | Entered Factory 9824 | -5/Factory | Accompanied by 14 allies 9824 | -5/Factory | Evolved 2 slots: Utility x2 9825 | -5/Factory | Identified exit to Upper Caves 9826 | -5/Factory | Identified exit to Factory 10225 | -5/Factory | Lost 11 allies 10245 | -5/Factory | Destroyed 7 combat bots 10253 | -5/Factory | Lost 7 parts (1p2n4u) 10599 | -5/Factory | Build established: Scavenger-Mutant 10666 | -5/Factory | Fabricated Y-72 Warden (x2) 10750 | -5/Factory | Cargo convoy interrupted 10754 | -5/Factory | Released all parts (12) 10785 | -5/Factory | Entered Upper Caves 10786 | -5/Upper Caves | Identified exit to Upper Caves 10817 | -5/Upper Caves | Encountered a Warlord checkpoint 10864 | -5/Upper Caves | Attacked by a delusional Derelict stockpiling parts 10908 | -5/Upper Caves | Core integrity fell below 50% 11083 | -5/Upper Caves | Spotted B-75 Beast 11128 | -5/Upper Caves | Allies destroyed B-75 Beast 11304 | -5/Upper Caves | Entered another Upper Caves area 11304 | -5/Upper Caves | Accompanied by 2 allies 11305 | -5/Upper Caves | Identified exit to Warlord 11634 | -5/Upper Caves | Attracted the attention of an 0b10 checkpoint 11914 | -5/Upper Caves | Entered Warlord 12015 | -5/Warlord | System corruption cleaned by Quarantine Array 12489 | -5/Warlord | Learned Armory terminal intel 12489 | -5/Warlord | Learned Armory recycling unit intel 12489 | -5/Warlord | Learned Research terminal intel 12492 | -5/Warlord | Learned 4 Armory zone layouts 12492 | -5/Warlord | Learned 4 Research zone layouts 12492 | -5/Warlord | Learned 4 Quarantine zone layouts 12494 | -5/Warlord | Learned location of Quarantine (-3) 12494 | -5/Warlord | Learned Armory emergency access door positions 12799 | -5/Warlord | Found Prototype Device 12799 | -5/Warlord | Identified Minesniffer Drone Bay 13055 | -5/Warlord | Rebuked by Warlord 13080 | -5/Warlord | Warlord's base attacked by MAIN.C 13403 | -5/Warlord | Found Prototype Energy Gun 13403 | -5/Warlord | Identified Vortex Rifle 13409 | -5/Warlord | Found Prototype Energy Cannon 13409 | -5/Warlord | Identified Vortex Cannon 13420 | -5/Warlord | Found Vortex Cannon 13430 | -5/Warlord | Warlord forces counterattacked 13528 | -5/Warlord | Build established: Derelict-Mutant 13755 | -5/Warlord | Warlord base infiltrated, sounded retreat 13991 | -5/Warlord | Spotted Executioner 14003 | -5/Warlord | Spotted Executioner 14028 | -5/Warlord | Discovered new exit (range 13) 14074 | -5/Warlord | Entered Proximity Caves 14076 | -4/Proximity Caves | Spotter reported a threat 14077 | -4/Proximity Caves | Spotter reported a threat 14092 | -4/Proximity Caves | Lost 11 allies 14188 | -4/Proximity Caves | Spotter reported a threat 14241 | -4/Proximity Caves | Spotter reported a threat 14287 | -4/Proximity Caves | Spotter reported a threat 14345 | -4/Proximity Caves | Spotter reported a threat 14425 | -4/Proximity Caves | Spotter reported a threat 14471 | -4/Proximity Caves | Spotter reported a threat 14478 | -4/Proximity Caves | Spotter reported a threat 14539 | -4/Proximity Caves | Spotter reported a threat 14551 | -4/Proximity Caves | Spotter reported a threat 15049 | -4/Proximity Caves | Entered Factory 15049 | -4/Factory | Evolved 2 slots: Propulsion x1, Utility x1 15050 | -4/Factory | Identified exit to Armory 15286 | -4/Factory | Identified exit to Extension 15299 | -4/Factory | Search patrols dispatched 15450 | -4/Factory | Identified exit to Garrison 15451 | -4/Factory | Identified exit to Upper Caves 15549 | -4/Factory | Search patrols dispatched 15668 | -4/Factory | Lost 12 parts (2p3n5u2w) 15714 | -4/Factory | Entered Upper Caves 15715 | -4/Upper Caves | Identified exit to Upper Caves 15763 | -4/Upper Caves | Learned Research trap positions 15789 | -4/Upper Caves | Attracted the attention of an 0b10 base 15789 | -4/Upper Caves | Learned location of 2 exits from Upper Caves 15789 | -4/Upper Caves | Learned location of 1 exit from Factory 15789 | -4/Upper Caves | Learned Armory trap positions 15789 | -4/Upper Caves | Learned Research emergency access door positions 15789 | -4/Upper Caves | Learned Armory emergency access door positions 15869 | -4/Upper Caves | Ambushed by wild Derelicts 15922 | -4/Upper Caves | Entered another Upper Caves area 15923 | -4/Upper Caves | Identified exit to Zhirov 15923 | -4/Upper Caves | Identified exit to Research 15946 | -4/Upper Caves | Attracted the attention of an 0b10 outpost 16013 | -4/Upper Caves | Entered Zhirov 16013 | -4/Zhirov | Discovered new exit (range 3) 16025 | -4/Zhirov | Lost 3 parts (1n2u) 16032 | -4/Zhirov | Learned location of Testing (-2) 16032 | -4/Zhirov | Learned location of Command (-1) 16045 | -4/Zhirov | Found Alien Artifact 16045 | -4/Zhirov | Identified Integrated Reactor 16045 | -4/Zhirov | Installed Integrated Reactor, increased core energy generation (+10) 16095 | -4/Zhirov | Found Alien Artifact 16268 | -4/Zhirov | Build established: Mutant 16334 | -4/Zhirov | Entered Proximity Caves 16481 | -3/Proximity Caves | Released all parts (9) 16482 | -3/Proximity Caves | Core integrity fell below 50% 16512 | -3/Proximity Caves | Attracted the attention of an 0b10 outpost 16512 | -3/Proximity Caves | Core integrity fell below 20% 16535 | -3/Proximity Caves | Identified Transdimensional Reconstructor 16535 | -3/Proximity Caves | Warped through subspace 16588 | -3/Proximity Caves | Destroyed by S-43 Plague with Heavy Machine Gun Last Messages --------------- 16481_ Acquired Exp. Utility Shielding. 16482_ Slug penetrates Wall. 16482_ Acquired Lgt. Antimatter Reactor. 16483_ Wall collapses. 16485_ Acquired Lrn. Proton Cannon+. 16485_ Slug penetrates Wall. 16503_ Penetrated by Slug. 16506_ Slug penetrates Wall. 16510_ System corrupted: Heat flow error (+101). 16512_ Y-72 Warden: "DETECTED UNIDENTIFIED DERELICT." 16516_ Y-72 Warden: "REQUESTING BACKUP." 16526_ System corrupted: Matter fused (-5). 16535_ Identified Transdimensional Reconstructor. 16535_ Warped through subspace. 16557_ System corrupted: Heat flow error (+299). 16584_ Dropped Sapper Charge. 16585_ Started Sapper Charge timer (8). 16586_ Slammed into S-43 Plague. Map ----- +----------------------------------------------------+ | #### ##????????????????????????????????????? | | ## ##?????????????????????????????????????? | | ## ##??????????????????????????????????????? | | ## ##??????????????????????????????????????? | | ##?????????????????????????????????????? | | #?????????????????????????????????????? | | #????????????????????????????????????? | | ## #???????????????????????????????????? | | ## #???????????????????????????????????? | | ## ##???????????????????????????????????? | | # ## #????????????????????????????????????? | | # ####????????????????????????????????????? | | ## #???????????????????????????????????????? | | #### ##???????????????????????????????????????? | | #??# ##???????????????????????????????????????? | | ##?# ##?###??????????????????????????????????? | | #?# ## ##?????????????????????????????????? | | #?## ##????????????????????????????????? | | ##??## #????????????????????????????????? | | ##????# #??????#####?????????????????????? | | ??????### ##????### ####??????????????????? | | ????????# ###???### ##?????????????????? | | ???????## ##???### ##????????????????? | | ??????## ##???# ### #???????????? | | ?????## ###### ss #???????????? | | ?????# ## s @ #???????????? | | ?????# &######## #???????????? | | ?????# ##??????????????????????????? | | ???# #???????????????????????????? | | ?# #??????????????????????????? | | #??????????????????????????? | | ##??????????????????????????? | | ### #####???????????????????????????? | | ??## ######???????????????????????????????? | | ???## ?????????????????????????????????????? | | ????### ?????????????????????????????????????? | | ??????# ?????????????????????????????????????? | | ?????? ?????????????????????????????????????? | | ????? ?????????????????????????????????????? | | ??????? ?????????????????????????????????????? | | ?????????????????????????????????????????????????? | | ?????????????????????????????????????????????????? | | ?????????????????????????????????????????????????? | | ?????????????????????????????????????????????????? | | ?????????????????????????????????????????????????? | | ?????????????????????????????????????????????????? | | ?????????????????????????????????????????????????? | | ?????????????????????????????????????????????????? | | ?????????????????????????????????????????????????? | | ?????????????????????????????????????????????????? | +----------------------------------------------------+ Best States ------------- Heat Dissipation 143 Energy Generation 54 Energy Capacity 910 Matter Stores 450 Matter Capacity 450 Sight Range 16 Terrain Scan Density 10 Power Amplification 20 Base Temperature (-) 150 Armor Coverage 1050 Power Shielding 33 Utility Shielding 90 Weapon Shielding 66 Evasion (%) 55 Target Analysis 6 Recoil Reduction 2 Matter Filtering 50 Energy Filtering 45 Defensive Hacking 14 Authchip Count 1 Item Schematics ----------------- Assault Cannon | -9/Materials | Scanalyzed Shock Bomb Launcher | -8/Recycling | Hacked Stasis Canceller | -6/Zion | Archive Imp. Launcher Guidance Computer | -6/Zion | Archive Focal Shield | -6/Zion | Archive Imp. Trap Scanner | -6/Zion | Archive Hvy. Plasma Cannon | -6/Zion | Archive Point Defense System | -6/Zion | Archive Imp. Transmission Jammer | -6/Zion | Archive Adv. Cryofiber Web | -6/Zion | Archive IFF Parser | -6/Zion | Archive Imp. Focal Shield | -6/Zion | Archive Imp. Weapon Cycler | -6/Zion | Archive Phase Cannon | -6/Zion | Archive Adv. Reaction Control System | -6/Zion | Archive Assault Drone Bay | -4/Zhirov | Free Exp. Heat Sink | -4/Zhirov | Free Exp. Optical Array | -4/Zhirov | Free Imp. Arc Thrower | -4/Zhirov | Free Robot Schematics ------------------ L-41 Fighter | -6/Zion | Archive K-01 Serf | -6/Zion | Archive T-07 Excavator | -6/Zion | Archive Y-72 Warden | -6/Zion | Archive Fabricated ------------ Y-72 Warden | x2 | -5/Factory | Authchip Repaired ---------- Shield Generator | 36% | -8/Materials Ion Engine | 66% | -8/Materials Imp. Heat Sink | 15% | -8/Materials EM Shotgun | 18% | -8/Materials Hrd. Medium Armor Plating | 38% | -8/Storage Studied --------- EM Shotgun | -9/Materials | Hacked Arm. Wheel | -9/Materials | Hacked Mni. Grenade Launcher | -9/Materials | Hacked Assault Rifle | -9/Materials | Hacked Imp. Ion Engine | -9/Materials | Hacked Hvy. EM Pulse Gun | -9/Materials | Hacked Com. Wheel | -9/Materials | Hacked Ion Engine | -8/Materials | Hacked Deuterium Engine | -6/Factory | Hacked Wheel | -4/Factory | Hacked Lrn. Proton Cannon | -4/Factory | Hacked Rnf. Fission Core | -4/Factory | Hacked Alien Tech Used ----------------- Integrated Reactor Transdimensional Reconstructor Achievements -------------- None Challenges ------------ None Game ------ Seed ReactiveBeamMegashotty Manual? 0 Play Time 02:37:56 Cumulative 188.8 hours Start 2026.07.26 @ 00:30:39 End 2026.07.26 @ 12:22:41 Sessions 3 Manual Loads 0 Difficulty Rogue Special Mode None Game No. 106 Rogue 106 Adventurer 0 Explorer 0 Win Type - Total 4 Types 4/0/0/0/0/0/0/0/0/0 Lore% 73 Gallery% 63 Achievement% 54 Wizard Run 0 Options --------- Layout 1 ASCII 0 Keyboard 0 Movement Numpad Keybinds 0 Fullscreen 1 Font 24/Smallcaps Map View 50x35 Zoom Use 0% Tactical HUD 1 Map Filters NONE Filters NONE Steam 1 RUN: 50124f56-e50f-4368-b494-1d1e3c22d942